bitfinex/quotes_BTCUSD_20250522
["timestamp","ask_amount","ask_price","bid_price","bid_amount"]
[1747924776110,0.34342749,110770.0,110760.0,0.03623053]
[1747924776326,0.34342749,110770.0,110760.0,0.00915253]
[1747924776538,0.41558082,110770.0,110760.0,0.00915253]
[1747924776958,0.34342749,110770.0,110760.0,0.00915253]
[1747924777370,0.34342749,110770.0,110760.0,0.00615253]
[1747924777814,0.34342749,110770.0,110760.0,3.19082313]
[1747924777964,0.26290931,110770.0,110760.0,3.20887994]
[1747924778165,0.26290931,110770.0,110760.0,3.21088002]
[1747924778371,0.26290931,110770.0,110760.0,3.22294987]
[1747924778571,0.26290931,110770.0,110760.0,3.22094987]
[1747924779004,0.26290931,110770.0,110760.0,3.22194987]
[1747924779208,0.09138183,110770.0,110760.0,3.24000602]
[1747924779419,0.09138183,110770.0,110760.0,3.58000602]
[1747924779867,0.10040938,110770.0,110760.0,3.58000602]
[1747924780652,0.0823542,110770.0,110760.0,3.58000602]
[1747924780933,0.07332714,110770.0,110760.0,3.58000602]
[1747924781145,0.19859338,110780.0,110770.0,0.19860915]
[1747924781146,0.26049338,110780.0,110770.0,0.19860915]
[1747924781366,0.26951787,110780.0,110770.0,4.95182037]
[1747924781551,0.27854477,110780.0,110770.0,4.95182037]
[1747924782025,0.26951836,110780.0,110770.0,2.06454]
[1747924782255,0.26049171,110780.0,110770.0,2.08452193]
[1747924782483,0.2524649,110780.0,110770.0,2.08452201]
[1747924783413,0.2524649,110780.0,110770.0,1.89494]
[1747924783605,0.243438,110780.0,110770.0,1.89494]
[1747924783823,0.243438,110780.0,110770.0,2.08452185]
[1747924784261,0.243438,110780.0,110770.0,1.89494]
[1747924784483,0.243438,110780.0,110770.0,2.08452201]
[1747924784678,0.243438,110780.0,110770.0,2.09354948]
[1747924784879,0.0629,110780.0,110770.0,2.09354948]
[1747924785098,0.27954379,110780.0,110770.0,2.111604]
[1747924785333,0.28857069,110780.0,110770.0,2.111604]
[1747924785591,0.27954453,110780.0,110770.0,2.11160416]
[1747924786055,0.27954453,110780.0,110770.0,2.10257686]
[1747924786276,0.27051812,110780.0,110770.0,2.09354948]
[1747924786494,0.26149163,110780.0,110770.0,2.09354964]
[1747924786722,0.26149163,110780.0,110770.0,2.13868057]
[1747924787213,0.26049163,110780.0,110770.0,2.13868057]
[1747924787435,0.26049163,110780.0,110770.0,2.12965319]
[1747924787663,0.26049163,110780.0,110770.0,2.13968066]
[1747924787791,0.07995322,110780.0,110770.0,2.13968066]
[1747924788017,0.26049122,110780.0,110770.0,2.13968025]
[1747924788618,0.25146473,110780.0,110770.0,2.12162548]
[1747924789115,0.25146473,110780.0,110770.0,2.13065295]
[1747924789321,0.242438,110780.0,110770.0,2.1035703]
[1747924789529,0.242438,110780.0,110770.0,2.11259801]
[1747924790355,0.33198356,110780.0,110770.0,1.923016]
[1747924790753,0.33198356,110780.0,110770.0,1.803916]
[1747924792590,0.07995322,110780.0,110770.0,2.01155245]
[1747924792892,0.08897946,110780.0,110770.0,2.01155245]
[1747924793612,0.09800627,110780.0,110770.0,2.01155245]
[1747924793810,0.08125126,110790.0,110780.0,0.5476177]
[1747924794039,0.04894931,110800.0,110790.0,0.54759913]
[1747924794270,0.23284046,110810.0,110800.0,0.5385557]
[1747924794500,0.08324784,110810.0,110800.0,5.02116448]
[1747924794734,0.09227213,110810.0,110800.0,5.03018918]
[1747924794955,0.28178562,110810.0,110800.0,5.03018918]
[1747924795168,0.29081007,110810.0,110800.0,5.03018918]
[1747924795400,0.0110238,110810.0,110800.0,5.03018918]
[1747924795611,0.02907213,110810.0,110800.0,5.30074918]
[1747924795820,0.20956125,110810.0,110800.0,5.29172448]
[1747924796039,0.35758301,110810.0,110800.0,0.34]
[1747924796267,0.26207345,110790.0,110780.0,0.3896]
[1747924796532,0.35161901,110790.0,110780.0,5.133744]
[1747924796813,0.35161901,110790.0,110780.0,5.6633089]
[1747924797065,0.35161901,110790.0,110780.0,5.473744]
[1747924798064,0.35161901,110790.0,110780.0,3.6672]
[1747924798478,0.35161901,110790.0,110780.0,2.667]
[1747924798727,0.35161901,110790.0,110780.0,1.4507]
[1747924798943,0.35161901,110790.0,110780.0,1.4527]
[1747924799530,0.35161901,110790.0,110780.0,1.72326]
[1747924799693,0.35161901,110790.0,110780.0,1.72526]
[1747924800635,0.35161901,110790.0,110780.0,1.0543]
[1747924800833,0.35161901,110790.0,110780.0,1.72526]
[1747924801041,0.27109953,110790.0,110780.0,1.72526]
[1747924801256,0.26207378,110790.0,110780.0,1.72526]
[1747924802071,0.26207378,110790.0,110780.0,1.7253]
[1747924802703,0.26207378,110790.0,110780.0,1.905838]
[1747924802924,0.26207378,110790.0,110780.0,1.91486481]
[1747924803138,0.25304778,110790.0,110780.0,1.7253]
[1747924805131,0.25304778,110790.0,110780.0,1.752374]
[1747924805519,0.25304778,110790.0,110780.0,1.50614513]
[1747924808162,0.34259334,110790.0,110780.0,0.80811113]
[1747924808405,0.48159885,110790.0,110780.0,0.00404]
[1747924808623,0.42928752,110790.0,110780.0,0.00404]
[1747924809217,0.42928752,110790.0,110780.0,0.00204]
[1747924809629,0.76928752,110790.0,110780.0,4e-05]
[1747924809776,0.77556041,110790.0,110780.0,0.00104]
[1747924809986,0.70340708,110790.0,110780.0,0.00104]
[1747924810400,0.70340708,110790.0,110780.0,4e-05]
[1747924810624,0.70440708,110790.0,110780.0,4e-05]
[1747924810826,0.70540708,110790.0,110780.0,4e-05]
[1747924812415,0.26170915,110770.0,110760.0,0.672]
[1747924812669,0.35125471,110770.0,110760.0,0.67215253]
[1747924812880,0.35125471,110770.0,110760.0,0.40159253]
[1747924813796,0.35125471,110770.0,110760.0,0.40359253]
[1747924813968,0.35125471,110770.0,110760.0,0.40559253]
[1747924814643,0.35125471,110770.0,110760.0,1.83369253]
[1747924815536,0.26170915,110770.0,110760.0,1.83369253]
[1747924816837,0.26170915,110770.0,110760.0,1.65161021]
[1747924817059,0.26170915,110770.0,110760.0,4.050427]
[1747924817711,0.25259896,110760.0,110750.0,0.27064]
[1747924817936,0.34214452,110760.0,110750.0,0.27064]
[1747924819292,0.34214452,110760.0,110750.0,0.27164]
[1747924819764,0.25259896,110760.0,110750.0,3.922547]
[1747924820214,0.19862724,110760.0,110750.0,4.45216308]
[1747924820466,0.00902779,110760.0,110750.0,4.47022086]
[1747924820685,0.19876181,110770.0,110760.0,0.52959913]
[1747924820944,0.19876181,110770.0,110760.0,4.18050613]
[1747924821146,0.18070663,110770.0,110760.0,3.99993553]
[1747924821639,0.18070663,110770.0,110760.0,3.990907]
[1747924821860,0.00917988,110770.0,110760.0,4.18953432]
[1747924822086,0.00917988,110770.0,110760.0,4.20759047]
[1747924822087,0.01017939,110770.0,110760.0,4.20759047]
[1747924822280,0.00115233,110770.0,110760.0,4.29713603]
[1747924822739,0.19976083,110770.0,110760.0,4.54856252]
[1747924822957,0.26326148,110770.0,110760.0,4.661027]
[1747924823200,0.26326148,110770.0,110760.0,1.7785]
[1747924823428,0.35280704,110770.0,110760.0,1.82822]
[1747924823618,0.35180704,110770.0,110760.0,1.82822]
[1747924824114,0.35180704,110770.0,110760.0,1.83022]
[1747924826116,0.35180704,110770.0,110760.0,0.84892]
[1747924826337,0.35180704,110770.0,110760.0,0.80972]
[1747924826587,0.35180704,110770.0,110760.0,0.2726]
[1747924827054,0.35180704,110770.0,110760.0,3.923507]
[1747924827294,0.35180704,110770.0,110760.0,3.921507]
[1747924827487,0.35280704,110770.0,110760.0,3.921507]
[1747924828250,0.26326148,110770.0,110760.0,3.921507]
[1747924828464,0.26326148,110770.0,110760.0,4.46916219]
[1747924828465,0.00115233,110770.0,110760.0,4.46916219]
[1747924828671,0.01017939,110770.0,110760.0,4.46916219]
[1747924828882,0.00115233,110770.0,110760.0,4.55870775]
[1747924829116,0.00115233,110770.0,110760.0,4.90870775]
[1747924829777,0.00115233,110770.0,110760.0,4.91870775]
[1747924829991,0.00015233,110770.0,110760.0,4.91870775]
[1747924830219,0.20778862,110770.0,110760.0,4.81013424]
[1747924830437,0.24098919,110770.0,110760.0,4.85262596]
[1747924830656,0.24098919,110770.0,110760.0,4.86365408]
[1747924830974,0.24098919,110770.0,110760.0,4.86165408]
[1747924831184,0.24098919,110770.0,110760.0,4.86365408]
[1747924831597,0.216816,110770.0,110760.0,4.86365408]
[1747924831844,0.03626162,110770.0,110760.0,4.87268203]
[1747924832045,0.19876156,110770.0,110760.0,3.994907]
[1747924832282,0.19876156,110770.0,110760.0,4.664987]
[1747924832283,0.26216156,110770.0,110760.0,4.664987]
[1747924832483,0.26216156,110770.0,110760.0,4.8455576]
[1747924832803,0.26216156,110770.0,110760.0,4.85458604]
[1747924833043,0.26216156,110770.0,110760.0,4.8636144]
[1747924833257,0.26216156,110770.0,110760.0,4.8636544]
[1747924833468,0.26216156,110770.0,110760.0,4.89975993]
[1747924833652,0.19876156,110770.0,110760.0,4.90878821]
[1747924833920,0.18973418,110770.0,110760.0,4.88170313]
[1747924834109,0.18070663,110770.0,110760.0,4.88170313]
[1747924834658,0.00015233,110770.0,110760.0,4.8726746]
[1747924834901,0.0362613,110770.0,110760.0,4.89975919]
[1747924835139,0.21582331,110790.0,110760.0,4.89975919]
[1747924835140,0.002,110790.0,110780.0,0.5476177]
[1747924835362,0.020048,110810.0,110800.0,0.19855553]
[1747924835575,0.22760942,110810.0,110800.0,4.90015759]
[1747924835779,0.20069038,110810.0,110800.0,4.05166769]
[1747924836010,0.23299038,110810.0,110800.0,4.91127828]
[1747924836227,0.23299038,110810.0,110800.0,4.72174769]
[1747924836228,0.20069038,110810.0,110800.0,4.72174769]
[1747924836444,0.23299038,110810.0,110800.0,5.2522531]
[1747924836653,0.23299038,110810.0,110800.0,5.26127828]
[1747924836934,0.22396601,110810.0,110800.0,5.2522531]
[1747924837143,0.19166601,110810.0,110800.0,5.26127837]
[1747924837355,0.19166601,110810.0,110800.0,5.07174769]
[1747924837356,0.19366601,110810.0,110800.0,5.07174769]
[1747924837586,0.18664156,110810.0,110800.0,5.08077296]
[1747924838000,0.21974156,110810.0,110800.0,5.07174769]
[1747924838452,0.25244156,110810.0,110800.0,2.73742069]
[1747924839454,0.25244156,110810.0,110800.0,2.09302069]
[1747924840296,0.34198712,110810.0,110800.0,1.51822069]
[1747924840500,0.34198712,110810.0,110800.0,0.756711]
[1747924840732,0.34198712,110810.0,110800.0,1.425631]
[1747924841150,0.34198712,110810.0,110800.0,5.076538]
[1747924841359,0.34198712,110810.0,110800.0,5.25704341]
[1747924841360,0.25244156,110810.0,110800.0,5.25704341]
[1747924841560,0.19566585,110810.0,110800.0,5.28646381]
[1747924841826,0.21371451,110810.0,110800.0,5.28646397]
[1747924842024,0.21371451,110810.0,110800.0,5.28650397]
[1747924842843,0.21371451,110810.0,110800.0,5.27747887]
[1747924843091,0.2697903,110810.0,110800.0,5.08794828]
[1747924843294,0.2697903,110810.0,110800.0,4.81742828]
[1747924843434,0.2046903,110810.0,110800.0,5.26845369]
[1747924843786,0.19566601,110810.0,110800.0,5.08794828]
[1747924844198,0.25746601,110810.0,110800.0,5.08794828]
[1747924844407,0.19566601,110810.0,110800.0,5.08794828]
[1747924844635,0.18664156,110810.0,110800.0,5.08794828]
[1747924845048,0.20057822,110830.0,110820.0,0.34]
[1747924845280,0.002,110830.0,110820.0,4.55851533]
[1747924845499,0.002,110830.0,110820.0,4.63799533]
[1747924845722,0.18245655,110830.0,110820.0,4.340907]
[1747924845942,0.02906773,110830.0,110820.0,5.1992833]
[1747924846152,0.02004491,110830.0,110820.0,5.22635291]
[1747924846359,0.02906765,110830.0,110820.0,5.22635291]
[1747924846570,0.02004442,110830.0,110820.0,5.22635291]
[1747924846787,0.02906692,110830.0,110820.0,4.87635291]
[1747924847254,0.01102209,110830.0,110820.0,4.87635291]
[1747924847478,0.02004434,110830.0,110820.0,4.87635291]
[1747924847697,0.01102209,110830.0,110820.0,4.87635291]
[1747924847909,0.002,110830.0,110820.0,4.96589847]
[1747924848359,0.01102209,110830.0,110820.0,4.96589847]
[1747924849023,0.01102217,110830.0,110820.0,4.96589847]
[1747924849222,0.02004442,110830.0,110820.0,4.96589847]
[1747924849438,0.01102217,110830.0,110820.0,4.96589847]
[1747924849658,0.002,110830.0,110820.0,4.96589847]
[1747924849873,0.002,110830.0,110820.0,4.97589847]
[1747924850713,0.002,110830.0,110820.0,5.32589847]
[1747924851196,0.002,110850.0,110840.0,0.54750532]
[1747924851411,0.00213758,110850.0,110840.0,4.55843788]
[1747924851823,0.00213758,110850.0,110840.0,4.90843788]
[1747924852618,0.00213758,110850.0,110840.0,4.91843788]
[1747924853436,0.00213758,110850.0,110840.0,4.93168325]
[1747924854333,0.00901973,110860.0,110850.0,0.2074866]
[1747924854531,0.002,110870.0,110860.0,0.54746772]
[1747924854743,0.002,110870.0,110860.0,4.55836028]
[1747924854957,0.002,110870.0,110860.0,4.90836028]
[1747924854958,0.01101892,110870.0,110860.0,4.90836028]
[1747924855265,0.19141036,110870.0,110860.0,4.70089256]
[1747924855467,0.26213,110870.0,110860.0,5.036635]
[1747924855669,0.26213,110870.0,110860.0,4.686635]
[1747924856088,0.26213,110870.0,110860.0,3.677955]
[1747924856301,0.26213,110870.0,110860.0,2.698628]
[1747924857582,0.26213,110870.0,110860.0,2.699628]
[1747924857797,0.26213,110870.0,110860.0,2.700628]
[1747924858357,0.35167556,110870.0,110860.0,0.820248]
[1747924858565,0.35167556,110870.0,110860.0,0.029048]
[1747924858770,0.35167556,110870.0,110860.0,0.697648]
[1747924859837,0.35167556,110870.0,110860.0,0.696648]
[1747924860055,0.35167556,110870.0,110860.0,0.695648]
[1747924862063,0.26213,110870.0,110860.0,4.346555]
[1747924862288,0.0637,110870.0,110860.0,4.90459348]
[1747924862533,0.002,110870.0,110860.0,4.99413904]
[1747924862979,0.05143548,110890.0,110880.0,0.54743046]
[1747924863196,0.05143548,110890.0,110880.0,4.45070085]
[1747924863197,0.27462028,110890.0,110880.0,4.45070085]
[1747924863412,0.27462028,110890.0,110880.0,4.46873779]
[1747924863625,0.27462028,110890.0,110880.0,4.45971944]
[1747924863843,0.27462028,110890.0,110880.0,4.46873795]
[1747924864065,0.00250795,110890.0,110880.0,4.48677465]
[1747924864289,0.00350795,110890.0,110880.0,4.57631972]
[1747924864728,0.27114915,110910.0,110900.0,0.18034265]
[1747924864961,0.2622707,110910.0,110900.0,4.708707]
[1747924865198,0.25325447,110910.0,110900.0,4.2413]
[1747924866244,0.25325447,110910.0,110900.0,3.5505]
[1747924866463,0.25325447,110910.0,110900.0,2.8565]
[1747924867645,0.25425447,110910.0,110900.0,2.85654]
[1747924867857,0.25525447,110910.0,110900.0,2.85654]
[1747924869099,0.25525447,110910.0,110900.0,2.85566]
[1747924869787,0.59525447,110910.0,110900.0,1.51946]
[1747924870033,0.68480003,110910.0,110900.0,0.65968]
[1747924870681,0.69312666,110910.0,110900.0,4.310587]
[1747924871555,0.69312666,110910.0,110900.0,4.337633]
[1747924872481,0.69312666,110910.0,110900.0,1.043326]
[1747924872720,0.69312666,110910.0,110900.0,1.05692]
[1747924872958,0.70766751,110910.0,110900.0,0.38936]
[1747924873181,0.70766751,110910.0,110860.0,0.40177618]
[1747924873182,0.26053,110870.0,110860.0,0.40177618]
[1747924873406,0.26053,110870.0,110860.0,4.9096712]
[1747924873862,0.0621,110870.0,110860.0,4.93673129]
[1747924874089,0.00832663,110890.0,110880.0,0.21644905]
[1747924874322,0.01734384,110890.0,110880.0,4.13767605]
[1747924874566,0.00832663,110890.0,110880.0,4.22722161]
[1747924874811,0.04201599,110910.0,110900.0,0.19837666]
[1747924874812,0.28029051,110910.0,110900.0,0.19837666]
[1747924875037,0.20739322,110900.0,110890.0,0.20739705]
[1747924875312,0.0656,110900.0,110890.0,4.53488142]
[1747924875542,0.26595829,110910.0,110900.0,0.20739346]
[1747924875771,0.27497444,110910.0,110900.0,3.84928366]
[1747924876000,0.26595861,110910.0,110900.0,3.650907]
[1747924876225,0.27432043,110910.0,110900.0,3.650907]
[1747924876453,0.27432043,110910.0,110900.0,3.84026678]
[1747924876670,0.26530436,110910.0,110900.0,3.65992413]
[1747924877144,0.26530436,110910.0,110900.0,3.650907]
[1747924877367,0.26530436,110910.0,110900.0,3.921187]
[1747924877553,0.26830436,110910.0,110900.0,3.921187]
[1747924877873,0.09699388,110910.0,110900.0,4.11054678]
[1747924878085,0.27732027,110910.0,110900.0,4.11956383]
[1747924878289,0.27732027,110910.0,110900.0,4.11960383]
[1747924878501,0.07896182,110910.0,110900.0,4.11960383]
[1747924878739,0.29535151,110910.0,110900.0,4.12862063]
[1747924878964,0.26895845,110910.0,110900.0,4.13763735]
[1747924879402,0.09764772,110910.0,110900.0,4.14665391]
[1747924879847,0.10666395,110910.0,110900.0,4.14665391]
[1747924880269,0.28699034,110910.0,110900.0,4.13763735]
[1747924880699,0.09764772,110910.0,110900.0,4.14665391]
[1747924880928,0.08863157,110910.0,110900.0,4.14665391]
[1747924881153,0.03204764,110910.0,110900.0,4.14665391]
[1747924881360,0.005,110910.0,110900.0,4.23619947]
[1747924881593,0.01401566,110910.0,110900.0,4.23619947]
[1747924882028,0.02303141,110910.0,110900.0,4.23619947]
[1747924882248,0.03906347,110910.0,110900.0,4.58619947]
[1747924882665,0.0290474,110910.0,110900.0,4.58619947]
[1747924883156,0.02003141,110910.0,110900.0,4.58619947]
[1747924883363,0.002,110910.0,110900.0,4.58619947]
[1747924883576,0.02103141,110910.0,110900.0,4.58619947]
[1747924883984,0.003,110910.0,110900.0,4.58619947]
[1747924884413,0.01201558,110910.0,110900.0,4.58619947]
[1747924884625,0.01201558,110910.0,110900.0,4.61323947]
[1747924885074,0.03906322,110910.0,110900.0,4.61323947]
[1747924885287,0.03004699,110910.0,110900.0,4.61323947]
[1747924885444,0.02103124,110910.0,110900.0,4.61323947]
[1747924885653,0.003,110910.0,110900.0,4.61323947]
[1747924885894,0.003,110910.0,110900.0,4.61523947]
[1747924886180,0.02003133,110910.0,110900.0,4.61523947]
[1747924886395,0.002,110910.0,110900.0,4.61523947]
[1747924886600,0.01101558,110910.0,110900.0,4.61723947]
[1747924887158,0.002,110910.0,110900.0,4.61723947]
[1747924887357,0.21288492,110930.0,110920.0,0.20735566]
[1747924887358,0.08122881,110930.0,110920.0,0.20735566]
[1747924887566,0.26167453,110930.0,110920.0,4.50763255]
[1747924887772,0.27068938,110930.0,110920.0,4.318307]
[1747924887995,0.25266074,110930.0,110920.0,4.318307]
[1747924888196,0.24364613,110930.0,110910.0,0.38916]
[1747924888420,0.34507103,110920.0,110910.0,0.78632]
[1747924888691,0.34507103,110920.0,110910.0,1.16566]
[1747924889589,0.34507103,110920.0,110910.0,1.16666]
[1747924889796,0.34507103,110920.0,110910.0,1.16566]
[1747924890440,0.25552547,110920.0,110910.0,1.34602639]
[1747924890710,0.07621477,110920.0,110910.0,1.37307436]
[1747924890915,0.0672,110920.0,110910.0,1.37307436]
[1747924891127,0.08522995,110920.0,110910.0,0.68764262]
[1747924891347,0.26554057,110920.0,110910.0,1.34602639]
[1747924891568,0.26554057,110920.0,110910.0,1.37307492]
[1747924891780,0.26554057,110920.0,110910.0,1.36405893]
[1747924892197,0.26554057,110920.0,110910.0,1.37307492]
[1747924892414,0.26554057,110920.0,110910.0,1.38209083]
[1747924892631,0.08522995,110920.0,110910.0,1.39110658]
[1747924892856,0.1032603,110920.0,110910.0,1.39110658]
[1747924893538,0.08522978,110920.0,110910.0,1.39110658]
[1747924893879,0.29258601,110920.0,110910.0,1.38209083]
[1747924894074,0.08523011,110920.0,110910.0,1.39110658]
[1747924894278,0.08523003,110920.0,110910.0,1.39110658]
[1747924894443,0.02804537,110920.0,110910.0,1.39110658]
[1747924894652,0.09074537,110920.0,110910.0,1.39110658]
[1747924894853,0.2710555,110920.0,110910.0,1.37307492]
[1747924895051,0.28007092,110920.0,110910.0,1.37307492]
[1747924895293,0.28007092,110920.0,110910.0,1.34602639]
[1747924895517,0.26204089,110920.0,110910.0,1.36405877]
[1747924895726,0.26204089,110920.0,110910.0,1.37307476]
[1747924895933,0.07271485,110920.0,110910.0,1.38209051]
[1747924896066,0.01001477,110920.0,110910.0,1.38209051]
[1747924896281,0.01902978,110920.0,110910.0,1.38209051]
[1747924896483,0.05934496,110920.0,110910.0,1.38209051]
[1747924896814,0.09154496,110920.0,110910.0,1.38209051]
[1747924897021,0.28087116,110920.0,110910.0,1.71307476]
[1747924897206,0.09154553,110920.0,110910.0,1.73110642]
[1747924898000,0.09154553,110920.0,110910.0,1.34194642]
[1747924898522,0.28087116,110920.0,110910.0,1.3689845]
[1747924898700,0.27185615,110920.0,110910.0,1.34193677]
[1747924898901,0.08253052,110920.0,110910.0,1.35996851]
[1747924899315,0.27185607,110920.0,110910.0,1.35095276]
[1747924899517,0.08253052,110920.0,110910.0,1.35996851]
[1747924899921,0.26284065,110920.0,110910.0,1.35095276]
[1747924900135,0.27185607,110920.0,110910.0,1.35095292]
[1747924900723,0.26284105,110920.0,110910.0,0.873338]
[1747924900930,0.26284105,110920.0,110910.0,1.3328807]
[1747924901151,0.26284105,110920.0,110910.0,1.350913]
[1747924901376,0.26284105,110920.0,110910.0,1.35992899]
[1747924901782,0.26284105,110920.0,110910.0,1.07169693]
[1747924902042,0.26284105,110920.0,110910.0,1.143538]
[1747924902255,0.35238661,110920.0,110910.0,1.11562]
[1747924902471,0.35238661,110920.0,110910.0,0.66652]
[1747924902894,0.35238661,110920.0,110910.0,1.00652]
[1747924903338,0.35238661,110920.0,110910.0,3.35104639]
[1747924903339,0.26284105,110920.0,110910.0,3.35104639]
[1747924903557,0.26284105,110920.0,110910.0,3.36006262]
[1747924903767,0.26284105,110920.0,110910.0,3.36907877]
[1747924903999,0.08252995,110920.0,110910.0,3.38711051]
[1747924904203,0.08252978,110920.0,110910.0,3.38711051]
[1747924904443,0.01001477,110920.0,110910.0,3.38711051]
[1747924904652,0.01902978,110920.0,110910.0,3.38711051]
[1747924905169,0.01802978,110920.0,110910.0,3.38711051]
[1747924905402,0.27967035,110920.0,110910.0,3.36907877]
[1747924905611,0.09936022,110920.0,110910.0,3.38711051]
[1747924906455,0.09936006,110920.0,110910.0,3.38711051]
[1747924906672,0.02704488,110920.0,110910.0,3.38711051]
[1747924906884,0.0488297,110920.0,110910.0,3.38711051]
[1747924907099,0.0578448,110920.0,110910.0,3.38911051]
[1747924907315,0.0308,110920.0,110910.0,3.38911051]
[1747924907527,0.09309568,110930.0,110920.0,0.2073559]
[1747924907752,0.09309568,110930.0,110920.0,3.86727783]
[1747924907958,0.09309503,110930.0,110920.0,3.86727783]
[1747924908163,0.10210956,110930.0,110920.0,3.86727783]
[1747924908370,0.00215226,110930.0,110920.0,4.29682339]
[1747924908581,0.00215226,110930.0,110920.0,4.32385839]
[1747924908797,0.01116638,110930.0,110920.0,4.32385839]
[1747924909008,0.28480367,110930.0,110920.0,4.017942]
[1747924909225,0.26677527,110930.0,110920.0,1.892]
[1747924909436,0.26677527,110930.0,110920.0,2.55848]
[1747924909673,0.26677527,110930.0,110920.0,2.40780555]
[1747924909878,0.25776082,110930.0,110920.0,2.21848]
[1747924910107,0.25776082,110930.0,110920.0,2.23171626]
[1747924910343,0.25776082,110930.0,110920.0,2.41202639]
[1747924910558,0.25776082,110930.0,110920.0,2.42104181]
[1747924910774,0.26677527,110930.0,110920.0,2.43005707]
[1747924911185,0.25776082,110930.0,110920.0,2.41202639]
[1747924911613,0.24874613,110930.0,110920.0,0.40951626]
[1747924911850,0.33829169,110930.0,110920.0,0.39628]
[1747924912065,0.35283254,110930.0,110920.0,0.39628]
[1747924912944,0.25492547,110920.0,110910.0,0.27024]
[1747924913172,0.34447103,110920.0,110910.0,0.27024]
[1747924914302,0.34447103,110920.0,110910.0,0.27124]
[1747924915402,0.34447103,110920.0,110910.0,0.27224]
[1747924917940,0.34447103,110920.0,110910.0,0.27228]
[1747924921100,0.34447103,110920.0,110910.0,3.923187]
[1747924921316,0.25492547,110920.0,110910.0,4.10351339]
[1747924921530,0.26394073,110920.0,110910.0,4.46154561]
[1747924921743,0.27295615,110920.0,110910.0,4.45252962]
[1747924921965,0.35348645,110920.0,110910.0,0.75468]
[1747924922181,0.35348645,110920.0,110910.0,0.48444]
[1747924922603,0.35348645,110920.0,110910.0,1.151]
[1747924923300,0.35348645,110920.0,110910.0,0.88076]
[1747924923502,0.35348645,110920.0,110910.0,1.151]
[1747924923984,0.35348645,110920.0,110910.0,0.6686]
[1747924924212,0.35348645,110920.0,110910.0,1.6028]
[1747924924434,0.35348645,110920.0,110910.0,1.33256]
[1747924924654,0.35348645,110920.0,110910.0,2.5187]
[1747924924877,0.35348645,110920.0,110910.0,1.0086]
[1747924926614,0.36385543,110920.0,110910.0,0.73836]
[1747924927015,0.35348645,110920.0,110910.0,0.73836]
[1747924927223,0.35348645,110920.0,110910.0,0.39836]
[1747924927873,0.35348645,110920.0,110910.0,0.39736]
[1747924928254,0.35348645,110920.0,110910.0,0.39636]
[1747924929359,0.35090271,110920.0,110910.0,0.39636]
[1747924929560,0.35090271,110920.0,110910.0,0.40677617]
[1747924929779,0.26135715,110920.0,110910.0,0.93611879]
[1747924930006,0.26135715,110920.0,110910.0,0.92710256]
[1747924930235,0.26135715,110920.0,110910.0,0.74677617]
[1747924930904,0.30217318,110920.0,110910.0,0.74677617]
[1747924933414,0.31671403,110920.0,110910.0,0.27028]
[1747924933629,0.30217318,110920.0,110910.0,0.27028]
[1747924934018,0.33537318,110920.0,110910.0,0.28100707]
[1747924934245,0.33537318,110920.0,110910.0,0.27028]
[1747924935105,0.20739265,110900.0,110890.0,0.53796144]
[1747924935318,0.19837625,110900.0,110890.0,4.57557074]
[1747924935974,0.18935961,110900.0,110890.0,2.76447052]
[1747924936190,0.22235945,110900.0,110890.0,2.96286507]
[1747924936398,0.2313765,110900.0,110890.0,3.24412285]
[1747924936594,0.2313765,110900.0,110890.0,3.03871052]
[1747924936786,0.34230526,110900.0,110890.0,0.004]
[1747924937009,0.34230526,110900.0,110890.0,0.27424]
[1747924937325,0.34230526,110900.0,110890.0,0.28493775]
[1747924937549,0.34230526,110900.0,110890.0,0.01469775]
[1747924937769,0.01803376,110900.0,110890.0,4.88123088]
[1747924938001,0.00901583,110910.0,110900.0,0.55640969]
[1747924938225,0.00901583,110910.0,110900.0,4.20731685]
[1747924938446,0.21639002,110910.0,110900.0,4.19830021]
[1747924939309,0.26215861,110910.0,110900.0,1.4827]
[1747924939504,0.26215861,110910.0,110900.0,1.68207683]
[1747924939732,0.26215861,110910.0,110900.0,1.69109379]
[1747924939970,0.26215861,110910.0,110900.0,1.69209379]
[1747924940180,0.23035861,110910.0,110900.0,1.34307683]
[1747924940655,0.26205861,110910.0,110900.0,1.33405978]
[1747924940892,0.26205861,110910.0,110900.0,1.34307683]
[1747924941093,0.19835861,110910.0,110900.0,1.36111051]
[1747924941345,0.19835861,110910.0,110900.0,1.35209379]
[1747924941566,0.18934254,110910.0,110900.0,1.1447]
[1747924941749,0.24974254,110910.0,110900.0,1.1447]
[1747924941981,0.24974254,110910.0,110900.0,1.32504265]
[1747924942214,0.24974254,110910.0,110900.0,1.3340597]
[1747924942441,0.24974254,110910.0,110900.0,1.34307666]
[1747924942901,0.24974254,110910.0,110900.0,1.1447]
[1747924943133,0.24974254,110910.0,110900.0,1.59532265]
[1747924943406,0.3392881,110910.0,110900.0,0.39772]
[1747924943648,0.3392881,110910.0,110900.0,0.668]
[1747924944087,0.24974254,110910.0,110900.0,4.345953]
[1747924945182,0.24974254,110910.0,110900.0,4.52629565]
[1747924945399,0.24974254,110910.0,110900.0,4.53531278]
[1747924945631,0.24974254,110910.0,110900.0,4.54432966]
[1747924945632,0.18934254,110910.0,110900.0,4.54432966]
[1747924945855,0.18934254,110910.0,110900.0,3.261846]
[1747924946102,0.25094254,110910.0,110900.0,1.491846]
[1747924946550,0.25094254,110910.0,110900.0,1.776846]
[1747924947286,0.25094254,110910.0,110900.0,1.95718865]
[1747924947516,0.25094254,110910.0,110900.0,1.96620578]
[1747924947740,0.25094254,110910.0,110900.0,0.770846]
[1747924947741,0.3404881,110910.0,110900.0,0.770846]
[1747924947971,0.40710877,110910.0,110900.0,0.002]
[1747924948202,0.62530895,110910.0,110900.0,0.002]
[1747924948847,0.63162643,110910.0,110900.0,0.002]
[1747924949155,0.63162643,110910.0,110900.0,0.001]
[1747924949378,0.26079422,110890.0,110880.0,0.342]
[1747924949596,0.35033978,110890.0,110880.0,0.342]
[1747924950016,0.35033978,110890.0,110880.0,0.61228]
[1747924950220,0.35033978,110890.0,110880.0,0.342]
[1747924950441,0.36488063,110890.0,110880.0,0.002]
[1747924951959,0.36488063,110890.0,110880.0,0.003]
[1747924952177,0.36488063,110890.0,110880.0,0.002]
[1747924952378,0.36488063,110890.0,110880.0,0.003]
[1747924952817,0.36488063,110890.0,110880.0,0.002]
[1747924953258,0.36588063,110890.0,110880.0,0.002]
[1747924954771,0.35133978,110890.0,110880.0,0.002]
[1747924959903,0.35133978,110890.0,110880.0,0.39784]
[1747924960114,0.19939422,110890.0,110880.0,4.84846085]
[1747924960319,0.19939422,110890.0,110880.0,4.90591605]
[1747924960320,0.01001729,110890.0,110880.0,4.90591605]
[1747924960725,0.001,110890.0,110880.0,4.99546161]